{"text_format":"1","workbook":"xlsx","n_sheets":2,"sheets":["Teilnehmer","Wertungspunkte"],"not_rendered":{"charts":0,"images":7,"macros":1,"external_links":0,"defined_names":1,"comments":0,"pivot_tables":0},"unopened":[],"bounds":{"document_bytes":16777216,"sheet_cells":100000,"rows_first":2000,"rows_last":500,"rows_between":2000,"halvings":0,"cell_chars":16384,"cell_head_chars":4096},"cells_cut":0,"cells_raw":0,"read":"whole","date_system":"1900"}

{"sheet":"Teilnehmer","index":0,"n_rows":12,"n_cols":4,"rows_kept":12,"cut":false,"hidden":false,"merged":[]}
["TN-Nr","Fahrer-Name","Vorname","Referenz"]
[1,"Düsentrieb","Daniel",{"$f":"CONCATENATE(A2,\" | \",B2,\", \",C2)","v":"1 | Düsentrieb, Daniel"}]
[2,"Freudenhof","Ferdi",{"$f":"CONCATENATE(A3,\" | \",B3,\", \",C3)","v":"2 | Freudenhof, Ferdi"}]
[3,"Runkel","Rainer","3 | Runkel, Rainer"]
[4,"Bertelwick","Theo","4 | Bertelwick, Theo"]
[5,"Tessmer","Theodor","5 | Tessmer, Theodor"]
[6,"Hesse","Hermann","6 | Hesse, Hermann"]
[7,"Dunkel","Dagobert","7 | Dunkel, Dagobert"]
[8,"Juli","Julia","8 | Juli, Julia"]
[9,"Oktober","Oktavia","9 | Oktober, Oktavia"]
[10,"Besen","Steffen","10 | Besen, Steffen"]
[null,""]

{"sheet":"Wertungspunkte","index":1,"n_rows":11,"n_cols":167,"rows_kept":11,"cut":false,"hidden":false,"merged":[]}
["StartNr","TN-Nr","Name (Ref.)","Zahl aus Name (Ref.)",null,null,null,null,null,null,null,null,null,null,null,null,null,null,null,null,null,null,null,null,null,null,null,null,null,null,null,null,null,null,null,null,null,null,null,null,null,null,null,null,null,null,null,null,null,null,null,null,null,null,null,null,null,null,null,null,null,null,null,null,null,null,null,null,null,null,null,null,null,null,null,null,null,null,null,null,null,null,null,null,null,null,null,null,null,null,null,null,null,null,null,null,null,null,null,null,null,null,null,null,null,null,null,null,null,null,null,null,null,null,null,null,null,null,null,null,null,null,null,null,null,null,null,null,null,null,null,null,null,null,null,null,null,null,null,null,null,null,null,null,null,null,null,null,null,null,null,null,null,null,null,null,null,null,null,null,null,null,null,null,null,null,504]
[1,1,{"$f":"VLOOKUP(B2,Teilnehmer!$A$2:$D$11,4)","v":"1 | Düsentrieb, Daniel"},null,"Ziel meiner selbst auferlegten Übungsaufgabe:"]
[2,2,{"$f":"VLOOKUP(B3,Teilnehmer!$A$2:$D$11,4)","v":"2 | Freudenhof, Ferdi"},null,"Zahlen aus Zelleninhalt in Spalte C extrahieren"]
[5,3,{"$f":"VLOOKUP(B4,Teilnehmer!$A$2:$D$11,4)","v":"3 | Runkel, Rainer"},null,"und - z. B. - in Spalte D eintragen."]
[33,4,{"$f":"VLOOKUP(B5,Teilnehmer!$A$2:$D$11,4)","v":"4 | Bertelwick, Theo"}]
[102,5,{"$f":"VLOOKUP(B6,Teilnehmer!$A$2:$D$11,4)","v":"5 | Tessmer, Theodor"},null,"Dabei soll die .Find-Methode genutzt werden."]
[105,6,{"$f":"VLOOKUP(B7,Teilnehmer!$A$2:$D$11,4)","v":"6 | Hesse, Hermann"},null,"Aus HERBERS Excel Forum kam dieser Hinweis:"]
[201,7,{"$f":"VLOOKUP(B8,Teilnehmer!$A$2:$D$11,4)","v":"7 | Dunkel, Dagobert"},null,null,"LookAt:=xlPart kann du dazu nutzen. Den Suchwert setzt du aus Nr & \" |\" zusammen."]
[202,8,{"$f":"VLOOKUP(B9,Teilnehmer!$A$2:$D$11,4)","v":"8 | Juli, Julia"}]
[402,9,{"$f":"VLOOKUP(B10,Teilnehmer!$A$2:$D$11,4)","v":"9 | Oktober, Oktavia"}]
[404,10,{"$f":"VLOOKUP(B11,Teilnehmer!$A$2:$D$11,4)","v":"10 | Besen, Steffen"}]